Cogmind - Beta 10.1 @@@ ROGUE MODE // 2020.10.20 @ 12:06:31 Player: Aprion27 Result: Destroyed by as-61317 with Assembled Rifle Performance ------------- Evolutions (0) 0 Regions Visited (2) 400 Robots Destroyed (16) 80 Value Destroyed (363) 363 Prototype IDs (0) 0 Alien Tech Used (0) 0 Bonus (0) 0 TOTAL SCORE: 843 Bonus ------- None Cogmind --------- Core Integrity 0/250 Matter 386/450 Energy 160/160 System Corruption 0% Temperature Cool (0) Movement Treading (160) Location -10/Mines Parts ------- > --- POWER (1) -------- Light Nuclear Core > --- PROPULSION (2) --- Improved Treads Improved Treads > --- UTILITY (2) ------ Medium Storage Unit Large Matter Pod > --- WEAPON (2) ------- Grenade Launcher Rocket Launcher > --- INVENTORY (8) ---- Light Treads High-capacity Matter Pod (39) Weapon Shielding EM Pulse Gun Grenade Launcher Peak State ------------ > --- POWER ------------ Light Nuclear Core > --- PROPULSION ------- Improved Treads Improved Treads > --- UTILITY ---------- Medium Storage Unit Large Matter Pod > --- WEAPON ----------- Rocket Launcher Rocket Launcher > --- INVENTORY -------- Light Treads EM Pulse Gun Grenade Launcher Grenade Launcher [Rating: 13] Favorites ----------- Power Light Nuclear Core Power Core Light Nuclear Core Propulsion Improved Treads Treads Improved Treads Utility Large Matter Pod Storage Large Matter Pod Weapon Rocket Launcher Energy Gun EM Pulse Gun Launcher Rocket Launcher Build | -11 -10 -10 ------- Run | Scr Mat Min Slots Evolved . | . . . Power . | . . . Propulsion . | . . . Utility . | . . . Weapon . | . . . Parts Attached 20 | 2 13 5 Power 1 | . 1 . Engine . | . . . Core 1 | . 1 . Reactor . | . . . Propulsion 6 | 2 4 . Treads 6 | 2 4 . Leg . | . . . Wheel . | . . . Hover . | . . . Flight . | . . . Utility 2 | . 2 . Device . | . . . Storage 2 | . 2 . Processor . | . . . Hackware . | . . . Protection . | . . . Artifact . | . . . Weapon 11 | . 6 5 Energy Gun 2 | . . 2 Energy Cannon . | . . . Ballistic Gun . | . . . Ballistic Cannon . | . . . Launcher 9 | . 6 3 Special Weapon . | . . . Impact Weapon . | . . . Slashing Weapon . | . . . Piercing Weapon . | . . . Special Melee Weapon . | . . . Unidentified Prototypes . | . . . Parts Lost 2 | . 1 1 Power . | . . . Propulsion . | . . . Utility . | . . . Weapon 2 | . 1 1 Highest Loss Streak 1 | . 1 1 Average Slot Usage (%) 87 | . 70 100 Core 9 | . 2 14 Treads 28 | . 28 28 Storage 22 | . 14 28 Launcher 25 | . 24 26 Naked Turns . | . . . Heaviest Build 24 | . 24 24 Greatest Support 46 | 40 46 46 Greatest Overweight (x) . | . . . Average Overweight (x) . | . . . Largest Inventory Capacity 8 | 4 8 8 Average Capacity 6 | 4 4 8 Most Carried 6 | 1 4 6 Average Carried 4 | . 3 5 Final Capacity 8 | 4 8 8 Final Carried 5 | 1 4 5 Class Distribution -------------------- 100% | Mutant Dominant Class ---------------- Mutant | -10/Materials Mutant | -10/Mines Resources | -11 -10 -10 ----------- Run | Scr Mat Min Matter Collected 566 | 122 334 110 Remotely . | . . . Salvage Created 359 | . 214 145 Parts 33 | . 24 9 Haulers Intercepted 1 | . 1 . Recyclers Shooed 1 | . 1 . Parts Field Recycled . | . . . Retrieved Matter . | . . . Parts Self-Destructed . | . . . Prevented . | . . . Kills | -11 -10 -10 ------- Run | Scr Mat Min Combat Hostiles Destroyed 13 | . 7 6 Melee 1 | . 1 . Guns 3 | . . 3 AOE 9 | . 6 3 Classes Destroyed 5 | . 5 . Worker 1 | . 1 . Hauler 1 | . 1 . Watcher 1 | . 1 . Swarmer 6 | . 3 3 Grunt 7 | . 4 3 Best Kill Streak 3 | . 3 3 Combat Bots Only 3 | . 3 3 Max Kills in Single Turn 3 | . 3 1 Gunslinging . | . . . Exploded 3 | . 3 1 Melee 1 | . 1 . Uniques/NPCs Destroyed . | . . . Combat | -11 -10 -10 -------- Run | Scr Mat Min Damage Taken 913 | . 432 481 Core 251 | . 129 122 Absorbed by Shields . | . . . Core Remaining (%) 100 | 100 . . Volleys Fired 24 | . 6 18 Largest 2 | . 2 2 Hottest 66 | . 66 63 Shots Fired 31 | . 11 20 Gun 15 | . . 15 Cannon . | . . . Launcher 16 | . 11 5 Special . | . . . Kinetic . | . . . Thermal . | . . . Explosive 16 | . 11 5 Electromagnetic 15 | . . 15 Robot Hit Streak 5 | . 2 5 Robot Miss Streak 2 | . 1 2 Penetration Max . | . . . Secondary Targets . | . . . Shots Hit Robots 22 | . 6 16 Core Hits 28 | 1 15 12 Critical Hits . | . . . Critical Kills . | . . . Critical Parts Destroyed . | . . . Melee Attacks . | . . . Impact . | . . . Slashing . | . . . Piercing . | . . . Sneak Attacks . | . . . Combat Hostiles . | . . . Follow-up Attacks . | . . . Damage Inflicted 1267 | 4 690 573 Guns 145 | . . 145 Cannons . | . . . Explosions 1058 | . 655 403 Melee . | . . . Ramming 64 | 4 35 25 Kinetic . | . . . Thermal 27 | . . 27 Explosive 1031 | . 655 376 Electromagnetic 145 | . . 145 Impact . | . . . Slashing . | . . . Piercing . | . . . Highest Corruption . | . . . Average Corruption . | . . . Corruption Purged . | . . . Overload Shots . | . . . Overflow Damage 55 | . 10 45 Projectiles . | . . . Explosions 55 | . 10 45 Melee . | . . . Knockbacks 1 | . 1 . Impact 1 | . 1 . Kinetic . | . . . Secondary . | . . . Self-Inflicted Damage 43 | . 7 36 Shots 2 | . 1 1 Rammed 30 | 1 21 8 Targets Rammed 32 | 1 23 8 Kicked . | . . . Crushed 2 | . 2 . Highest Temperature 65 | . 12 65 Average Temperature 26 | . 6 29 Received Heat Transfer 366 | . 222 144 Siege Activations . | . . . Robots Corrupted . | . . . Combat Hostiles . | . . . Parts Fried . | . . . Impact Corruptions . | . . . Robots Melted . | . . . Combat Hostiles . | . . . Parts Melted . | . . . Heat Transferred . | . . . Parts Sabotaged . | . . . Parts Stolen . | . . . Parts Stripped . | . . . Power Chain Reactions 1 | . . 1 Missiles Intercepted . | . . . Alert | -11 -10 -10 ------- Run | Scr Mat Min Peak Influence 187 | . 187 86 Initial 16 | . . 16 Average 39 | . 57 30 Maximum Alert Level . | . . . Low Security (%) 100 | 100 100 100 Level 1 . | . . . Level 2 . | . . . Level 3 . | . . . Level 4 . | . . . Level 5 . | . . . High Security . | . . . Max Security . | . . . Squads Dispatched 2 | . 2 . Investigation 1 | . 1 . Extermination . | . . . Reinforcement 1 | . 1 . Assault . | . . . Garrison . | . . . Intercept . | . . . Construction Impeded . | . . . Haulers Reinforced . | . . . Stealth | -11 -10 -10 --------- Run | Scr Mat Min Distress Signals 1 | . 1 . Communications Jammed . | . . . Distress Signals . | . . . Times Spotted 31 | . 13 18 Peak Tracking Total 17 | . 4 17 Tactical Retreats 3 | . 2 1 Traps | -11 -10 -10 ------- Run | Scr Mat Min Traps Triggered 1 | . 1 . Indirectly . | . . . Trap Hack Attempts . | . . . Triggered . | . . . Disarmed . | . . . Reprogrammed . | . . . Reused . | . . . Traps Extracted . | . . . Installed . | . . . Triggered . | . . . Machines | -11 -10 -10 ---------- Run | Scr Mat Min Machines Disabled 2 | . 2 . Max in Single Turn 1 | . 1 . Machines Sabotaged . | . . . Garrisons Compromised . | . . . Overloaded Fab Kills . | . . . Fab Network Shutdowns . | . . . Hacking | -11 -10 -10 --------- Run | Scr Mat Min Machines Accessed . | . . . Terminals . | . . . Fabricators . | . . . Repair Stations . | . . . Recycling Units . | . . . Scanalyzers . | . . . Garrison Access . | . . . Total Hacks . | . . . Successful . | . . . Failed . | . . . Catastrophic . | . . . Database Lockouts . | . . . Manual . | . . . Terminals . | . . . Fabricators . | . . . Repair Stations . | . . . Recycling Units . | . . . Scanalyzers . | . . . Garrison Access . | . . . Terminal Hacks . | . . . Fabricator Hacks . | . . . Repair Station Hacks . | . . . Recycling Unit Hacks . | . . . Scanalyzer . | . . . Garrison Access Hacks . | . . . Unauthorized Hacks . | . . . Terminals . | . . . Fabricators . | . . . Repair Stations . | . . . Recycling Units . | . . . Scanalyzers . | . . . Garrison Access . | . . . Data Cores Recovered . | . . . Used . | . . . Hacking Detections . | . . . Full Trace Events . | . . . Feedback Events . | . . . Feedback Blocked . | . . . Robot Schematics Acquired . | . . . Robots Built . | . . . Matter . | . . . Time . | . . . Total Robot Build Rating . | . . . Part Schematics Acquired . | . . . Parts Built . | . . . Matter . | . . . Time . | . . . Total Part Build Rating . | . . . Parts Repaired . | . . . Time . | . . . Parts Recycled . | . . . Recycled Matter . | . . . Retrieved Matter . | . . . Retrieved Components . | . . . Parts Scanalyzed . | . . . Part Schematics Acquired . | . . . Parts Damaged . | . . . Bothacking | -11 -10 -10 ------------ Run | Scr Mat Min Used RIF Installer . | . . . Robots Hacked . | . . . Non-combat . | . . . Combat . | . . . Robot Hacks Applied . | . . . Relay Couplers Released . | . . . Robots Rewired . | . . . Allies Hacked . | . . . Hacks Repelled . | . . . Allies | -11 -10 -10 -------- Run | Scr Mat Min Total Allies . | . . . Largest Group . | . . . Highest-Rated Group . | . . . Highest-Rated Ally . | . . . Total Orders . | . . . Ally Attacks . | . . . Total Damage . | . . . Kills . | . . . Allies Corrupted . | . . . Allies Melted . | . . . Intel | -11 -10 -10 ------- Run | Scr Mat Min Robot Analysis Total . | . . . Derelict Logs Recovered 1 | . . 1 Drone Launches . | . . . Drone Recoveries . | . . . Exploration | -11 -10 -10 ------------- Run | Scr Mat Min Turns Passed 1299 | 65 512 722 Spaces Moved 729 | 42 274 413 Core 6 | 6 . . Treads 723 | 36 274 413 Legs . | . . . Wheels . | . . . Hover . | . . . Flight . | . . . Fastest Speed 50 | 50 160 160 Average Speed 159 | 144 160 160 Slowest Speed 160 | 160 160 160 Overloaded Moves . | . . . Propulsion Burnouts . | . . . Robots Hopped . | . . . Cave-ins Triggered . | . . . Exploration Rate (%) 39 | 3 46 68 Regions Visited 2 Branch Regions 1 Pre-discovered Areas 1 | . . 1 Known Exits Taken . | . . . Unknown Exits Taken 2 | 1 1 . Scrap Searched 2 | . . 2 Spaces Dug . | . . . Terrain Destroyed 117 | . 80 37 Melee . | . . . Projectile . | . . . AOE 117 | . 80 37 Terrain Rammed . | . . . Walls Destroyed . | . . . Machines Disabled . | . . . Actions | -11 -10 -10 --------- Run | Scr Mat Min Total 814 | 45 321 448 Wait 2 | . . 2 Move 728 | 41 274 413 Hop . | . . . Pick Up 3 | 1 . 2 Fast Attach 10 | 2 8 . Attach 1 | . . 1 Detach 2 | . 2 . Swap 9 | . 5 4 Drop 4 | . 4 . Fire 24 | . 6 18 Melee . | . . . Ram . | . . . Kick . | . . . Crush 31 | 1 22 8 Escape Stasis . | . . . Rewire . | . . . Trap . | . . . Miscellaneous . | . . . Route ------- -11/Scrapyard -10/Materials (discovered 2 exits: *Mat / [*Min]) -10/Mines (discovered 2 exits: *Mat x2) History --------- Turn | Location | Event 8 | -11/Scrapyard | Discovered new exit (range 16) 66 | -11/Scrapyard | Entered Materials 256 | -10/Materials | Discovered new exit (range 3) 287 | -10/Materials | Core integrity fell below 50% 342 | -10/Materials | Build established: Mutant 552 | -10/Materials | Discovered new exit (range 15) 578 | -10/Materials | Entered Mines 592 | -10/Mines | Identified exit to Materials 982 | -10/Mines | Core integrity fell below 20% 1040 | -10/Mines | Discovered exit to Materials (range 7) 1192 | -10/Mines | Learned location of Storage (-8) 1281 | -10/Mines | Assembled infested the area 1286 | -10/Mines | Assisted by a Guerilla fighting off Assembled 1300 | -10/Mines | Destroyed by as-61317 with Assembled Rifle Last Messages --------------- 01034_ Searching scrap... 01034_ Found Datajack. 01034_ Found 21 Matter. 01035_ Acquired 21 matter. 01040_ EXIT=FOUND: MATERIALS 01098_ Slammed into T-07 Excavator. 01192_ A derelict emerges from the shadows: "Are any of them following you? I'm here trying to lose some heat after our second raid on Storage failed. Whatever you do stay away from that place, they've tightened security following our previous successful raids." World map updated: -8/Storage. 01194_ 9B-XOB(g): "We scattered so the Unaware couldn't effectively use their advantage in numbers, and I suggest you do the same." 01194_ 9B-XOB(g) slips back into the shadows. 01196_ T-07 Excavator is excavating. 01281_ ALERT: Infestation in the mines, dispatching Demolisher response squad. 01286_ A derelict emerges from the shadows: "You need to get out of here! I've been tracking a group of Assembled to figure out where they're coming from, and they're closing on this area, come on!" Map ----- +----------------------------------------------------+ | ?????????????????????????????????????????????????? | | ?????????????????????????????????????????????????? | | ?????????????????????????????????????????????????? | | ?????????????????????????????????????????????????? | | ?????????????????????????????????????????????????? | | ?????????????????????????????????????????????????? | | ?????????????????????????????????????????????????? | | ?????????????????????????????????????????????????? | | ?????????????????????????????????????????????????? | | ####?????????????????????????????????????????????? | | ##????????????????????????????????????????????? | | ##??????????????????????????#????????????????? | | #????????????????????????? #????????????????? | | #????????????????????????? #????????????????? | | # ##????????????????????????? ????????????????? | | # ###?????????????????????????? #????????????????? | | #??????????????????????????? #????????????????? | | # #???????????####???????????? #????????????????? | | # ####???????## ##??????????? a#????????????????? | | # #???????# ##????????##a #????????????????? | | ### #???????# ######??## aa#????????????????? | | ??# #???????# ####aa #????????????????? | | ?## ######??# ## a ##???????????????? | | ?# #### aaa #???????????????? | | ?# ## t a #???????????????? | | ?## """" @ ##???????????????? | | ?## """" ## ##????????????????? | | ## ## """" #### #?????????????????? | | #### ##??## #?????????????????? | | ##??# ##### ####????## ##?????????????????? | | ##???# #???# #????#########??????????????????? | | ##????# ##### #???## ##?????????????????????? | | ####?????# #???# #?????????????????????? | | ?????????# #######???# #?????????????????????? | | ?????????# #????###?## #??????????????????????? | | ???????### #???## ## #??????????????????????? | | ???????# #???# #??????????????????????? | | ???????# ###???# ##?????????????????????? | | ???????# #?????## """ ###???????????????????? | | ???????# #??????# """ #######?????????????? | | ???##### #??????## """ #?????????????? | | ???# #???????## #?????????###?? | | #### #####????????#### #### #### ####??????# ### | | #???####??#####"# #??####??# #??????# | | #### #??## ##?# #????????# #??????# | | ???# #??# ### #" "###????????##### #??????# | | #### #### #"="#??????????????# #??????#++## | | ## ## ##?????####?????# #??????# #? | | % ## ##???## ##????# #??????# #? | | ###### ### #### #???# ##???# #??##### #? | +----------------------------------------------------+ Best States ------------- Heat Dissipation 25 Energy Generation 14 Energy Capacity 160 Matter Stores 450 Matter Capacity 450 Sight Range 16 Terrain Scan Density 10 Evasion (%) 40 Recoil Reduction 2 Item Schematics ----------------- None Robot Schematics ------------------ None Fabricated ------------ Nothing Alien Tech Used ----------------- None Achievements -------------- None Challenges ------------ None Game ------ Seed SalvageLatentCarapace Manual? 0 Play Time 00:10:03 Cumulative 83.4 hours Start 2020.10.20 @ 11:56:42 End 2020.10.20 @ 12:06:31 Sessions 1 Manual Loads 0 Difficulty Rogue Special Mode None Game No. 58 Rogue 58 Adventurer 0 Explorer 0 Win Type - Total 1 Types 1/0/0/0/0/0/0/0/0 Lore% 25 Gallery% 48 Achievement% 36 Wizard Run 0 Options --------- ASCII 0 Keyboard 1 Movement Numpad Keybinds 0 Fullscreen 1 Font 36/Smallcaps Map View 76x50 Tactical HUD 1 Map Filters NONE Filters NONE Steam 1 RUN: ec9c1375-1ff8-4f66-aafc-17726d8b3960